[Event "Titled Tuesday Blitz August 31 2021"]
[White "Seemann, Jakub"]
[Black "Zwirs, Nico"]
[WhiteFideId "21874697"]
[BlackFideId "1036432"]
[WhiteElo "1805"]
[BlackElo "2365"]
[Result "1-0"]
[Round "03"]
[TimeControl "180+1"]
[Date "2021.08.31"]
[WhiteClock "0:00:11"]
[BlackClock "0:00:02"]

1. Nf3 {[%clk 0:03:00]}  Nf6 {[%clk 0:02:56]} 2. b3 {[%clk 0:03:00]}  g6 {[%clk 0:02:56]} 3. Bb2 {[%clk 0:03:01]}  d5 {[%clk 0:02:55]} 4. g3 {[%clk 0:03:01]}  c5 {[%clk 0:02:52]} 5. Bg2 {[%clk 0:03:00]}  Bg7 {[%clk 0:02:52]} 6. O-O {[%clk 0:03:01]}  O-O {[%clk 0:02:52]} 7. c4 {[%clk 0:03:01]}  d4 {[%clk 0:02:53]} 8. e3 {[%clk 0:03:01]}  Nc6 {[%clk 0:02:49]} 9. exd4 {[%clk 0:03:01]}  cxd4 {[%clk 0:02:50]} 10. Re1 {[%clk 0:03:01]}  Re8 {[%clk 0:02:44]} 11. d3 {[%clk 0:03:01]}  e5 {[%clk 0:02:40]} 12. Na3 {[%clk 0:02:59]}  Bf8 {[%clk 0:02:33]} 13. Nc2 {[%clk 0:02:59]}  a5 {[%clk 0:02:33]} 14. a3 {[%clk 0:02:59]}  Qc7 {[%clk 0:02:16]} 15. Qd2 {[%clk 0:02:48]}  Qb6 {[%clk 0:02:00]} 16. b4 {[%clk 0:02:16]}  axb4 {[%clk 0:01:59]} 17. axb4 {[%clk 0:02:16]}  Rxa1 {[%clk 0:01:59]} 18. Bxa1 {[%clk 0:02:17]}  Nxb4 {[%clk 0:01:58]} 19. Rb1 {[%clk 0:02:11]}  Bg4 {[%clk 0:00:41]} 20. Nxb4 {[%clk 0:02:07]}  Ra8 {[%clk 0:00:35]} 21. Qe1 {[%clk 0:01:23]}  Rxa1 {[%clk 0:00:34]} 22. Rxa1 {[%clk 0:01:20]}  Bxb4 {[%clk 0:00:32]} 23. Qxe5 {[%clk 0:01:16]}  Kg7 {[%clk 0:00:31]} 24. h3 {[%clk 0:00:48]}  Bxf3 {[%clk 0:00:24]} 25. Bxf3 {[%clk 0:00:49]}  Bd6 {[%clk 0:00:24]} 26. Qb5 {[%clk 0:00:49]}  Qxb5 {[%clk 0:00:20]} 27. cxb5 {[%clk 0:00:50]}  b6 {[%clk 0:00:21]} 28. Rc1 {[%clk 0:00:39]}  Nd7 {[%clk 0:00:18]} 29. Rc6 {[%clk 0:00:29]}  Bb4 {[%clk 0:00:17]} 30. Bd5 {[%clk 0:00:26]}  Kf8 {[%clk 0:00:17]} 31. Rc7 {[%clk 0:00:19]}  Ne5 {[%clk 0:00:13]} 32. f4 {[%clk 0:00:18]}  Nxd3 {[%clk 0:00:12]} 33. Rxf7+ {[%clk 0:00:19]}  Ke8 {[%clk 0:00:11]} 34. Rxh7 {[%clk 0:00:19]}  Bc5 {[%clk 0:00:08]} 35. Be4 {[%clk 0:00:18]}  Nb4 {[%clk 0:00:06]} 36. Bxg6+ {[%clk 0:00:18]}  Kd8 {[%clk 0:00:06]} 37. Kf1 {[%clk 0:00:18]}  d3 {[%clk 0:00:05]} 38. Bf5 {[%clk 0:00:17]}  Ke8 {[%clk 0:00:03]} 39. Ke1 {[%clk 0:00:12]}  Be3 {[%clk 0:00:02]} 40. Bxd3 {[%clk 0:00:11]}  Nxd3+ {[%clk 0:00:02]} 41. Ke2 {[%clk 0:00:11]} 1-0


[Site "https://www.chess.com"]

[Event "Titled Tuesday Blitz August 31 2021"]
[White "Shreyans, K. Shah"]
[Black "Pulpan, Jakub"]
[WhiteFideId "5029074"]
[BlackFideId "302759"]
[WhiteElo "1781"]
[BlackElo "2443"]
[Result "0-1"]
[Round "03"]
[TimeControl "180+1"]
[Date "2021.08.31"]
[WhiteClock "0:00:23"]
[BlackClock "0:00:54"]

1. d4 {[%clk 0:03:00]}  c6 {[%clk 0:02:52]} 2. Nf3 {[%clk 0:03:01]}  d5 {[%clk 0:02:42]} 3. Bf4 {[%clk 0:03:00]}  Qb6 {[%clk 0:02:41]} 4. Qc1 {[%clk 0:02:58]}  Bf5 {[%clk 0:02:41]} 5. c3 {[%clk 0:02:57]}  Nd7 {[%clk 0:02:11]} 6. e3 {[%clk 0:02:44]}  h6 {[%clk 0:02:09]} 7. Nbd2 {[%clk 0:02:02]}  e6 {[%clk 0:02:08]} 8. c4 {[%clk 0:01:56]}  Ngf6 {[%clk 0:02:06]} 9. Be2 {[%clk 0:01:52]}  Be7 {[%clk 0:02:05]} 10. c5 {[%clk 0:01:50]}  Qd8 {[%clk 0:02:03]} 11. b4 {[%clk 0:01:47]}  a6 {[%clk 0:02:03]} 12. a4 {[%clk 0:01:38]}  O-O {[%clk 0:01:47]} 13. O-O {[%clk 0:01:32]}  Ne4 {[%clk 0:01:46]} 14. Nxe4 {[%clk 0:01:29]}  Bxe4 {[%clk 0:01:39]} 15. Ne5 {[%clk 0:01:23]}  Nxe5 {[%clk 0:01:39]} 16. Bxe5 {[%clk 0:01:21]}  Bf6 {[%clk 0:01:22]} 17. Bf4 {[%clk 0:01:19]}  Re8 {[%clk 0:01:16]} 18. Qb2 {[%clk 0:01:14]}  Qe7 {[%clk 0:01:10]} 19. b5 {[%clk 0:01:09]}  Qxc5 {[%clk 0:01:09]} 20. bxa6 {[%clk 0:01:06]}  bxa6 {[%clk 0:01:08]} 21. Rac1 {[%clk 0:01:03]}  Qa5 {[%clk 0:01:08]} 22. Rxc6 {[%clk 0:00:57]}  Qxa4 {[%clk 0:00:59]} 23. Rfc1 {[%clk 0:00:51]}  g5 {[%clk 0:00:55]} 24. Bg3 {[%clk 0:00:49]}  a5 {[%clk 0:00:55]} 25. Bd6 {[%clk 0:00:44]}  Be7 {[%clk 0:00:49]} 26. Bb5 {[%clk 0:00:24]}  Rab8 {[%clk 0:00:49]} 27. Bxb8 {[%clk 0:00:21]}  Rxb8 {[%clk 0:00:50]} 28. Rc8+ {[%clk 0:00:18]}  Kg7 {[%clk 0:00:49]} 29. Rxb8 {[%clk 0:00:18]}  Qa3 {[%clk 0:00:49]} 30. Qxa3 {[%clk 0:00:18]}  Bxa3 {[%clk 0:00:50]} 31. Ra8 {[%clk 0:00:18]}  Bxc1 {[%clk 0:00:50]} 32. Rxa5 {[%clk 0:00:19]}  Bd2 {[%clk 0:00:49]} 33. Ra7 {[%clk 0:00:18]}  Bb4 {[%clk 0:00:48]} 34. f3 {[%clk 0:00:18]}  Bg6 {[%clk 0:00:48]} 35. Kf2 {[%clk 0:00:18]}  Bd6 {[%clk 0:00:48]} 36. g4 {[%clk 0:00:19]}  Bxh2 {[%clk 0:00:48]} 37. Rd7 {[%clk 0:00:19]}  h5 {[%clk 0:00:47]} 38. Be2 {[%clk 0:00:18]}  h4 {[%clk 0:00:47]} 39. Kg2 {[%clk 0:00:19]}  Bb8 {[%clk 0:00:47]} 40. Kh3 {[%clk 0:00:19]}  Bg3 {[%clk 0:00:47]} 41. Bd1 {[%clk 0:00:19]}  Bf2 {[%clk 0:00:47]} 42. Rd8 {[%clk 0:00:20]}  Bxe3 {[%clk 0:00:47]} 43. Rc8 {[%clk 0:00:20]}  Bxd4 {[%clk 0:00:48]} 44. Rb8 {[%clk 0:00:20]}  Be5 {[%clk 0:00:48]} 45. Rb3 {[%clk 0:00:19]}  Bf4 {[%clk 0:00:49]} 46. Be2 {[%clk 0:00:19]}  Kf6 {[%clk 0:00:50]} 47. Bd3 {[%clk 0:00:18]}  Bxd3 {[%clk 0:00:50]} 48. Rxd3 {[%clk 0:00:19]}  Ke5 {[%clk 0:00:50]} 49. Kg2 {[%clk 0:00:20]}  f5 {[%clk 0:00:50]} 50. Rd1 {[%clk 0:00:21]}  fxg4 {[%clk 0:00:50]} 51. fxg4 {[%clk 0:00:22]}  d4 {[%clk 0:00:51]} 52. Kf3 {[%clk 0:00:22]}  Kd5 {[%clk 0:00:51]} 53. Rd3 {[%clk 0:00:22]}  e5 {[%clk 0:00:52]} 54. Rd1 {[%clk 0:00:23]}  e4+ {[%clk 0:00:53]} 55. Kf2 {[%clk 0:00:23]}  d3 {[%clk 0:00:54]} 0-1


[Site "https://www.chess.com"]

[Event "Titled Tuesday Blitz August 31 2021"]
[White "Sjugirov, Sanan"]
[Black "Polivanov, Anatoliy"]
[WhiteFideId "4189302"]
[BlackFideId "14109468"]
[WhiteElo "2472"]
[BlackElo "2472"]
[Result "1-0"]
[Round "03"]
[TimeControl "180+1"]
[Date "2021.08.31"]
[WhiteClock "0:00:45"]
[BlackClock "0:00:03"]

1. e4 {[%clk 0:03:00]}  c5 {[%clk 0:02:59]} 2. Nf3 {[%clk 0:03:00]}  g6 {[%clk 0:02:59]} 3. d4 {[%clk 0:02:56]}  cxd4 {[%clk 0:02:59]} 4. Nxd4 {[%clk 0:02:57]}  Bg7 {[%clk 0:02:59]} 5. c4 {[%clk 0:02:57]}  Nc6 {[%clk 0:02:58]} 6. Be3 {[%clk 0:02:56]}  d6 {[%clk 0:02:57]} 7. Nc3 {[%clk 0:02:54]}  Qb6 {[%clk 0:02:57]} 8. Ndb5 {[%clk 0:02:37]}  Bxc3+ {[%clk 0:02:55]} 9. Nxc3 {[%clk 0:02:22]}  Qxb2 {[%clk 0:02:54]} 10. Bd2 {[%clk 0:02:18]}  Kf8 {[%clk 0:02:19]} 11. Be2 {[%clk 0:02:08]}  Be6 {[%clk 0:01:56]} 12. O-O {[%clk 0:02:06]}  Nd4 {[%clk 0:01:41]} 13. Bd3 {[%clk 0:01:54]}  Rc8 {[%clk 0:01:38]} 14. Rb1 {[%clk 0:01:51]}  Qa3 {[%clk 0:01:37]} 15. Rxb7 {[%clk 0:01:48]}  Bxc4 {[%clk 0:01:30]} 16. Bxc4 {[%clk 0:01:45]}  Rxc4 {[%clk 0:01:29]} 17. Nd5 {[%clk 0:01:42]}  Qxa2 {[%clk 0:01:00]} 18. Be3 {[%clk 0:01:15]}  e5 {[%clk 0:00:34]} 19. f4 {[%clk 0:00:57]}  Ne2+ {[%clk 0:00:15]} 20. Kh1 {[%clk 0:00:57]}  exf4 {[%clk 0:00:11]} 21. Nxf4 {[%clk 0:00:53]}  Nxf4 {[%clk 0:00:07]} 22. Bxf4 {[%clk 0:00:52]}  Nf6 {[%clk 0:00:04]} 23. Qxd6+ {[%clk 0:00:45]}  Kg7 {[%clk 0:00:03]} 24. Be5 {[%clk 0:00:45]} 1-0


[Site "https://www.chess.com"]

[Event "Titled Tuesday Blitz August 31 2021"]
[White "Starozhilov, Leonid"]
[Black "Ovchinnikov, Vsevolod"]
[WhiteFideId "14106752"]
[BlackFideId "24176842"]
[WhiteElo "2747"]
[BlackElo "2500"]
[Result "1-0"]
[Round "03"]
[TimeControl "180+1"]
[Date "2021.08.31"]
[WhiteClock "0:00:06"]
[BlackClock "0:00:06"]

1. c4 {[%clk 0:03:00]}  Nf6 {[%clk 0:02:59]} 2. Nf3 {[%clk 0:02:57]}  g6 {[%clk 0:03:00]} 3. g3 {[%clk 0:02:58]}  d5 {[%clk 0:03:00]} 4. cxd5 {[%clk 0:02:58]}  Nxd5 {[%clk 0:03:01]} 5. Nc3 {[%clk 0:02:58]}  Nb6 {[%clk 0:03:01]} 6. h4 {[%clk 0:02:57]}  Bg7 {[%clk 0:03:01]} 7. h5 {[%clk 0:02:57]}  Nc6 {[%clk 0:03:02]} 8. d3 {[%clk 0:02:57]}  Bg4 {[%clk 0:02:43]} 9. h6 {[%clk 0:02:46]}  Bxc3+ {[%clk 0:02:42]} 10. bxc3 {[%clk 0:02:45]}  Bxf3 {[%clk 0:02:43]} 11. exf3 {[%clk 0:02:44]}  Qd7 {[%clk 0:02:43]} 12. Be3 {[%clk 0:02:18]}  O-O-O {[%clk 0:02:41]} 13. Be2 {[%clk 0:02:15]}  Nd5 {[%clk 0:02:28]} 14. Bd2 {[%clk 0:02:00]}  Rhe8 {[%clk 0:02:12]} 15. Kf1 {[%clk 0:01:57]}  f5 {[%clk 0:02:01]} 16. Rb1 {[%clk 0:01:56]}  Nb6 {[%clk 0:01:50]} 17. Kg2 {[%clk 0:01:53]}  Qd5 {[%clk 0:01:46]} 18. a4 {[%clk 0:01:46]}  a6 {[%clk 0:01:20]} 19. Qc2 {[%clk 0:01:31]}  e5 {[%clk 0:01:16]} 20. Bg5 {[%clk 0:01:29]}  Rd7 {[%clk 0:01:12]} 21. Rhd1 {[%clk 0:01:27]}  Qa5 {[%clk 0:01:04]} 22. Ra1 {[%clk 0:01:22]}  Nd8 {[%clk 0:00:45]} 23. Rdb1 {[%clk 0:01:12]}  Ne6 {[%clk 0:00:42]} 24. Bd2 {[%clk 0:01:11]}  Na8 {[%clk 0:00:27]} 25. Rb4 {[%clk 0:01:01]}  c6 {[%clk 0:00:25]} 26. Rab1 {[%clk 0:00:59]}  Ree7 {[%clk 0:00:22]} 27. Be3 {[%clk 0:00:53]}  Qd8 {[%clk 0:00:19]} 28. Qb3 {[%clk 0:00:49]}  a5 {[%clk 0:00:16]} 29. Rc4 {[%clk 0:00:44]}  Rd5 {[%clk 0:00:12]} 30. Bf1 {[%clk 0:00:30]}  g5 {[%clk 0:00:08]} 31. Kg1 {[%clk 0:00:20]}  f4 {[%clk 0:00:08]} 32. Bh3 {[%clk 0:00:12]}  Qc7 {[%clk 0:00:04]} 33. Bc1 {[%clk 0:00:08]}  Kb8 {[%clk 0:00:02]} 34. Qc2 {[%clk 0:00:06]}  Re8 {[%clk 0:00:02]} 35. Re4 {[%clk 0:00:06]}  Nb6 {[%clk 0:00:01]} 36. Qb2 {[%clk 0:00:05]}  Nd7 {[%clk 0:00:02]} 37. Qc2 {[%clk 0:00:05]}  Ndc5 {[%clk 0:00:02]} 38. Bf5 {[%clk 0:00:05]}  Nxe4 {[%clk 0:00:02]} 39. Bxe4 {[%clk 0:00:06]}  Rd6 {[%clk 0:00:02]} 40. Ba3 {[%clk 0:00:06]}  Rd7 {[%clk 0:00:03]} 41. Qb2 {[%clk 0:00:06]}  Nd8 {[%clk 0:00:03]} 42. g4 {[%clk 0:00:06]}  Rf7 {[%clk 0:00:03]} 43. Kg2 {[%clk 0:00:06]}  Re6 {[%clk 0:00:03]} 44. Bc5 {[%clk 0:00:07]}  Rxh6 {[%clk 0:00:03]} 45. Bb6 {[%clk 0:00:07]}  Qc8 {[%clk 0:00:03]} 46. Bxa5 {[%clk 0:00:07]}  Rd6 {[%clk 0:00:02]} 47. Qb6 {[%clk 0:00:07]}  Rfd7 {[%clk 0:00:02]} 48. Bb4 {[%clk 0:00:07]}  Rxd3 {[%clk 0:00:02]} 49. Bc5 {[%clk 0:00:07]}  R7d5 {[%clk 0:00:02]} 50. Qa7+ {[%clk 0:00:07]}  Kc7 {[%clk 0:00:03]} 51. Bf5 {[%clk 0:00:07]}  Rd7 {[%clk 0:00:02]} 52. Bb6+ {[%clk 0:00:07]}  Kd6 {[%clk 0:00:03]} 53. Bc5+ {[%clk 0:00:08]}  Kc7 {[%clk 0:00:03]} 54. a5 {[%clk 0:00:08]}  Rxc3 {[%clk 0:00:03]} 55. Qb6+ {[%clk 0:00:08]}  Kb8 {[%clk 0:00:03]} 56. a6 {[%clk 0:00:09]}  Rxc5 {[%clk 0:00:03]} 57. Qxc5 {[%clk 0:00:10]}  Ka8 {[%clk 0:00:03]} 58. axb7+ {[%clk 0:00:10]}  Nxb7 {[%clk 0:00:04]} 59. Ra1+ {[%clk 0:00:09]}  Kb8 {[%clk 0:00:04]} 60. Qxe5+ {[%clk 0:00:09]}  Qc7 {[%clk 0:00:05]} 61. Qh8+ {[%clk 0:00:09]}  Rd8 {[%clk 0:00:05]} 62. Qc3 {[%clk 0:00:09]}  c5 {[%clk 0:00:06]} 63. Qa3 {[%clk 0:00:09]}  Qb6 {[%clk 0:00:05]} 64. Be4 {[%clk 0:00:10]}  Kc7 {[%clk 0:00:05]} 65. Rb1 {[%clk 0:00:10]}  Qxb1 {[%clk 0:00:04]} 66. Bxb1 {[%clk 0:00:10]}  Rd4 {[%clk 0:00:05]} 67. Be4 {[%clk 0:00:09]}  Rb4 {[%clk 0:00:04]} 68. Qc3 {[%clk 0:00:09]}  h6 {[%clk 0:00:04]} 69. Qg7+ {[%clk 0:00:07]}  Kb8 {[%clk 0:00:04]} 70. Qxh6 {[%clk 0:00:07]}  c4 {[%clk 0:00:03]} 71. Qxg5 {[%clk 0:00:06]}  c3 {[%clk 0:00:04]} 72. Qxf4+ {[%clk 0:00:07]}  Ka7 {[%clk 0:00:04]} 73. Qe3+ {[%clk 0:00:06]}  Rb6 {[%clk 0:00:05]} 74. Qxc3 {[%clk 0:00:07]}  Nd6 {[%clk 0:00:05]} 75. Qc7+ {[%clk 0:00:06]}  Ka6 {[%clk 0:00:05]} 76. Qc2 {[%clk 0:00:05]}  Nxe4 {[%clk 0:00:05]} 77. Qxe4 {[%clk 0:00:05]}  Kb5 {[%clk 0:00:05]} 78. g5 {[%clk 0:00:06]}  Kc5 {[%clk 0:00:06]} 79. g6 {[%clk 0:00:06]}  Rxg6+ {[%clk 0:00:06]} 80. Qxg6 {[%clk 0:00:06]} 1-0


[Site "https://www.chess.com"]

[Event "Titled Tuesday Blitz August 31 2021"]
[White "Stribuk, Artiom"]
[Black "Sihite, Chelsie Monica Ignesias"]
[WhiteFideId "13515659"]
[BlackFideId "7101198"]
[WhiteElo "2224"]
[BlackElo "2224"]
[Result "1-0"]
[Round "03"]
[TimeControl "180+1"]
[Date "2021.08.31"]
[WhiteClock "0:00:29"]
[BlackClock "0:00:14"]

1. d4 {[%clk 0:03:00]}  Nf6 {[%clk 0:02:57]} 2. c4 {[%clk 0:02:57]}  g6 {[%clk 0:02:58]} 3. Nf3 {[%clk 0:02:57]}  Bg7 {[%clk 0:02:58]} 4. g3 {[%clk 0:02:58]}  O-O {[%clk 0:02:47]} 5. Bg2 {[%clk 0:02:59]}  d6 {[%clk 0:02:45]} 6. O-O {[%clk 0:02:59]}  Nc6 {[%clk 0:02:43]} 7. Nc3 {[%clk 0:02:59]}  e5 {[%clk 0:02:43]} 8. d5 {[%clk 0:02:56]}  Ne7 {[%clk 0:02:42]} 9. e4 {[%clk 0:02:55]}  a6 {[%clk 0:02:41]} 10. a4 {[%clk 0:02:52]}  Nd7 {[%clk 0:02:40]} 11. Ne1 {[%clk 0:02:51]}  a5 {[%clk 0:02:38]} 12. Nd3 {[%clk 0:02:51]}  b6 {[%clk 0:02:38]} 13. f4 {[%clk 0:02:27]}  Nc5 {[%clk 0:02:36]} 14. Nxc5 {[%clk 0:02:13]}  bxc5 {[%clk 0:02:36]} 15. Qd3 {[%clk 0:02:04]}  f5 {[%clk 0:02:29]} 16. fxe5 {[%clk 0:01:59]}  Bxe5 {[%clk 0:02:25]} 17. Bh6 {[%clk 0:01:58]}  Rf7 {[%clk 0:02:25]} 18. Kh1 {[%clk 0:01:51]}  Kh8 {[%clk 0:02:20]} 19. Rae1 {[%clk 0:01:48]}  Ng8 {[%clk 0:02:18]} 20. Bc1 {[%clk 0:01:44]}  Bd7 {[%clk 0:02:11]} 21. b3 {[%clk 0:01:29]}  Qf6 {[%clk 0:01:57]} 22. exf5 {[%clk 0:01:24]}  gxf5 {[%clk 0:01:21]} 23. Ne2 {[%clk 0:01:21]}  Qg7 {[%clk 0:01:19]} 24. Nf4 {[%clk 0:01:18]}  Nh6 {[%clk 0:01:16]} 25. Ne6 {[%clk 0:01:14]}  Qg6 {[%clk 0:01:09]} 26. Rxe5 {[%clk 0:01:12]}  Ng4 {[%clk 0:00:54]} 27. Ree1 {[%clk 0:01:03]}  Re8 {[%clk 0:00:45]} 28. Bb2+ {[%clk 0:01:00]}  Kg8 {[%clk 0:00:44]} 29. Qc3 {[%clk 0:01:00]}  Rf6 {[%clk 0:00:29]} 30. h3 {[%clk 0:00:55]}  Ne5 {[%clk 0:00:28]} 31. Rxe5 {[%clk 0:00:55]}  dxe5 {[%clk 0:00:29]} 32. Qxe5 {[%clk 0:00:56]}  Kf7 {[%clk 0:00:28]} 33. Qxf6+ {[%clk 0:00:48]}  Qxf6 {[%clk 0:00:28]} 34. Bxf6 {[%clk 0:00:49]}  Kxf6 {[%clk 0:00:28]} 35. Nxc5 {[%clk 0:00:50]}  Bc8 {[%clk 0:00:27]} 36. g4 {[%clk 0:00:47]}  Kg5 {[%clk 0:00:26]} 37. gxf5 {[%clk 0:00:47]}  Bxf5 {[%clk 0:00:27]} 38. h4+ {[%clk 0:00:43]}  Kg4 {[%clk 0:00:26]} 39. Ne6 {[%clk 0:00:36]}  Bxe6 {[%clk 0:00:26]} 40. dxe6 {[%clk 0:00:37]}  Rxe6 {[%clk 0:00:26]} 41. Rf7 {[%clk 0:00:37]}  h6 {[%clk 0:00:24]} 42. Rxc7 {[%clk 0:00:36]}  Kg3 {[%clk 0:00:24]} 43. Rg7+ {[%clk 0:00:36]}  Kxh4 {[%clk 0:00:25]} 44. Kh2 {[%clk 0:00:36]}  Rb6 {[%clk 0:00:23]} 45. Rg3 {[%clk 0:00:35]}  h5 {[%clk 0:00:23]} 46. c5 {[%clk 0:00:35]}  Rg6 {[%clk 0:00:17]} 47. Rh3+ {[%clk 0:00:32]}  Kg4 {[%clk 0:00:17]} 48. c6 {[%clk 0:00:31]}  Rg7 {[%clk 0:00:15]} 49. Rc3 {[%clk 0:00:29]}  Rc7 {[%clk 0:00:14]} 50. Rc4+ {[%clk 0:00:29]}  Kf5 {[%clk 0:00:14]} 51. Rc5+ {[%clk 0:00:30]}  Kf4 {[%clk 0:00:14]} 52. Rxa5 {[%clk 0:00:30]}  h4 {[%clk 0:00:13]} 53. Rc5 {[%clk 0:00:28]}  Ke3 {[%clk 0:00:13]} 54. a5 {[%clk 0:00:29]}  Kd4 {[%clk 0:00:14]} 55. b4 {[%clk 0:00:29]} 1-0


[Site "https://www.chess.com"]

[Event "Titled Tuesday Blitz August 31 2021"]
[White "Svane, Frederik"]
[Black "Dong, Bao Nghia"]
[WhiteFideId "12923044"]
[BlackFideId "12400343"]
[WhiteElo "2459"]
[BlackElo "2409"]
[Result "1-0"]
[Round "03"]
[TimeControl "180+1"]
[Date "2021.08.31"]
[WhiteClock "0:00:08"]
[BlackClock "0:00:42"]

1. e4 {[%clk 0:03:00]}  e6 {[%clk 0:02:59]} 2. d4 {[%clk 0:03:00]}  d5 {[%clk 0:03:00]} 3. Nd2 {[%clk 0:03:01]}  Nc6 {[%clk 0:02:59]} 4. Ngf3 {[%clk 0:03:01]}  Nf6 {[%clk 0:03:00]} 5. e5 {[%clk 0:03:01]}  Nd7 {[%clk 0:03:00]} 6. Bd3 {[%clk 0:03:01]}  Nb4 {[%clk 0:03:00]} 7. Be2 {[%clk 0:03:02]}  c5 {[%clk 0:03:00]} 8. c3 {[%clk 0:03:02]}  Nc6 {[%clk 0:03:00]} 9. O-O {[%clk 0:03:02]}  f6 {[%clk 0:02:51]} 10. exf6 {[%clk 0:02:53]}  Qxf6 {[%clk 0:02:51]} 11. Nb3 {[%clk 0:02:54]}  Bd6 {[%clk 0:02:49]} 12. Bg5 {[%clk 0:02:48]}  Qf7 {[%clk 0:02:49]} 13. dxc5 {[%clk 0:02:44]}  Nxc5 {[%clk 0:02:48]} 14. Nxc5 {[%clk 0:02:44]}  Bxc5 {[%clk 0:02:48]} 15. Bb5 {[%clk 0:02:44]}  O-O {[%clk 0:02:45]} 16. Qe2 {[%clk 0:02:41]}  Qh5 {[%clk 0:02:38]} 17. Be3 {[%clk 0:00:56]}  Bd6 {[%clk 0:02:36]} 18. h3 {[%clk 0:00:57]}  e5 {[%clk 0:02:34]} 19. Rad1 {[%clk 0:00:53]}  e4 {[%clk 0:02:16]} 20. Ng5 {[%clk 0:00:47]}  Qxe2 {[%clk 0:01:31]} 21. Bxe2 {[%clk 0:00:48]}  Ne7 {[%clk 0:01:31]} 22. Nxe4 {[%clk 0:00:47]}  dxe4 {[%clk 0:01:31]} 23. Rxd6 {[%clk 0:00:46]}  Nf5 {[%clk 0:01:31]} 24. Bc4+ {[%clk 0:00:38]}  Kh8 {[%clk 0:01:32]} 25. Rdd1 {[%clk 0:00:33]}  a6 {[%clk 0:01:32]} 26. Bc5 {[%clk 0:00:31]}  Re8 {[%clk 0:01:24]} 27. Bf7 {[%clk 0:00:31]}  Be6 {[%clk 0:01:25]} 28. Bxe8 {[%clk 0:00:31]}  Rxe8 {[%clk 0:01:26]} 29. Rfe1 {[%clk 0:00:32]}  Bxa2 {[%clk 0:01:25]} 30. Rd7 {[%clk 0:00:24]}  b5 {[%clk 0:01:18]} 31. Ra1 {[%clk 0:00:20]}  Bc4 {[%clk 0:01:16]} 32. Rxa6 {[%clk 0:00:19]}  h5 {[%clk 0:01:14]} 33. Raa7 {[%clk 0:00:19]}  Re6 {[%clk 0:01:04]} 34. Rf7 {[%clk 0:00:13]}  Re5 {[%clk 0:00:59]} 35. Bd4 {[%clk 0:00:13]}  Nxd4 {[%clk 0:00:57]} 36. cxd4 {[%clk 0:00:14]}  Rg5 {[%clk 0:00:58]} 37. Rfe7 {[%clk 0:00:11]}  Bd3 {[%clk 0:00:49]} 38. Re5 {[%clk 0:00:11]}  Rg6 {[%clk 0:00:49]} 39. Rxh5+ {[%clk 0:00:11]}  Kg8 {[%clk 0:00:49]} 40. Rf5 {[%clk 0:00:11]}  Rd6 {[%clk 0:00:49]} 41. Ra8+ {[%clk 0:00:11]}  Kh7 {[%clk 0:00:49]} 42. d5 {[%clk 0:00:11]}  e3 {[%clk 0:00:49]} 43. Re5 {[%clk 0:00:09]}  e2 {[%clk 0:00:49]} 44. Rae8 {[%clk 0:00:09]}  Bc4 {[%clk 0:00:47]} 45. f3 {[%clk 0:00:08]}  Ra6 {[%clk 0:00:47]} 46. Kf2 {[%clk 0:00:08]}  Ra1 {[%clk 0:00:46]} 47. Rxe2 {[%clk 0:00:08]}  Bxd5 {[%clk 0:00:46]} 48. R8e5 {[%clk 0:00:07]}  Rd1 {[%clk 0:00:47]} 49. Ke3 {[%clk 0:00:04]}  Bc4 {[%clk 0:00:47]} 50. Rd2 {[%clk 0:00:05]}  Re1+ {[%clk 0:00:46]} 51. Kf4 {[%clk 0:00:05]}  Ra1 {[%clk 0:00:47]} 52. g4 {[%clk 0:00:06]}  Kg6 {[%clk 0:00:47]} 53. h4 {[%clk 0:00:06]}  Ra7 {[%clk 0:00:46]} 54. h5+ {[%clk 0:00:07]}  Kf7 {[%clk 0:00:45]} 55. Rf5+ {[%clk 0:00:07]}  Kg8 {[%clk 0:00:46]} 56. Re5 {[%clk 0:00:08]}  Kh7 {[%clk 0:00:45]} 57. Kg3 {[%clk 0:00:08]}  Ra1 {[%clk 0:00:44]} 58. Re4 {[%clk 0:00:08]}  Rg1+ {[%clk 0:00:44]} 59. Kf4 {[%clk 0:00:08]}  Rb1 {[%clk 0:00:42]} 60. Re7 {[%clk 0:00:08]} 1-0


[Site "https://www.chess.com"]

[Event "Titled Tuesday Blitz August 31 2021"]
[White "Tanenbaum, Zachary"]
[Black "Federzoni, Enzo"]
[WhiteFideId "2060850"]
[BlackFideId "2173301"]
[WhiteElo "2718"]
[BlackElo "2450"]
[Result "1-0"]
[Round "03"]
[TimeControl "180+1"]
[Date "2021.08.31"]
[WhiteClock "0:00:48"]
[BlackClock "0:00:12"]

1. e4 {[%clk 0:03:00]}  c5 {[%clk 0:02:59]} 2. Nf3 {[%clk 0:03:01]}  d6 {[%clk 0:02:59]} 3. d4 {[%clk 0:03:01]}  cxd4 {[%clk 0:03:00]} 4. Nxd4 {[%clk 0:03:02]}  Nf6 {[%clk 0:03:01]} 5. Nc3 {[%clk 0:03:02]}  a6 {[%clk 0:03:02]} 6. Be3 {[%clk 0:03:03]}  e5 {[%clk 0:03:02]} 7. Nb3 {[%clk 0:03:03]}  Be6 {[%clk 0:03:02]} 8. h3 {[%clk 0:03:04]}  Be7 {[%clk 0:02:59]} 9. f4 {[%clk 0:03:04]}  exf4 {[%clk 0:02:56]} 10. Bxf4 {[%clk 0:03:04]}  Nc6 {[%clk 0:02:55]} 11. Qe2 {[%clk 0:03:04]}  O-O {[%clk 0:02:51]} 12. O-O-O {[%clk 0:03:04]}  Qc7 {[%clk 0:02:47]} 13. g4 {[%clk 0:03:03]}  Ne5 {[%clk 0:02:45]} 14. g5 {[%clk 0:03:02]}  Nfd7 {[%clk 0:02:45]} 15. Kb1 {[%clk 0:02:59]}  b5 {[%clk 0:02:40]} 16. Qg2 {[%clk 0:02:57]}  Rac8 {[%clk 0:02:36]} 17. h4 {[%clk 0:02:53]}  b4 {[%clk 0:02:35]} 18. Nd5 {[%clk 0:02:50]}  Bxd5 {[%clk 0:02:35]} 19. exd5 {[%clk 0:02:50]}  a5 {[%clk 0:02:32]} 20. Nd4 {[%clk 0:02:48]}  a4 {[%clk 0:02:27]} 21. Nf5 {[%clk 0:02:40]}  Rfe8 {[%clk 0:02:24]} 22. h5 {[%clk 0:02:40]}  a3 {[%clk 0:02:22]} 23. g6 {[%clk 0:02:33]}  fxg6 {[%clk 0:01:50]} 24. hxg6 {[%clk 0:02:34]}  Nxg6 {[%clk 0:01:49]} 25. Bd3 {[%clk 0:02:23]}  Ndf8 {[%clk 0:01:30]} 26. Rdg1 {[%clk 0:02:19]}  axb2 {[%clk 0:01:26]} 27. Qh2 {[%clk 0:01:53]}  Bf6 {[%clk 0:00:55]} 28. Nxd6 {[%clk 0:01:07]}  b3 {[%clk 0:00:54]} 29. cxb3 {[%clk 0:00:59]}  Qc3 {[%clk 0:00:44]} 30. Bxg6 {[%clk 0:00:52]}  Nxg6 {[%clk 0:00:24]} 31. Qxh7+ {[%clk 0:00:52]}  Kf8 {[%clk 0:00:25]} 32. Qxg6 {[%clk 0:00:51]}  Ke7 {[%clk 0:00:12]} 33. Qf7+ {[%clk 0:00:47]}  Kd8 {[%clk 0:00:12]} 34. Nb7# {[%clk 0:00:48]} 1-0


[Site "https://www.chess.com"]